[Event "GER-ch Youth U18w 2019"]
[Site "Willingen"]
[Date "2019.06.09"]
[Round "1.9"]
[White "Kuemmel, Tina"]
[Black "Reitz, Theresa"]
[Result "0-1"]
[ECO "A04"]
[WhiteElo "1446"]
[BlackElo "1976"]
[Annotator "NA"]
[PlyCount "88"]
[EventDate "2019.06.07"]
[EventType "swiss"]
[EventRounds "9"]
[EventCountry "GER"]
[SourceTitle "playchess.com"]
[Source "ChessBase"]
[SourceQuality "1"]
[TimeControl "40/5400+30:1800+30"]

1. Nf3 {[%emt 0:00:00]} c5 {[%emt 0:00:00]} 2. g3 {[%emt 0:00:00]} Nc6 {[%emt 0:00:00]} 3. Bg2 {[%emt 0:00:00]} e5 {[%emt 0:00:03]} 4. e4 {[%emt 0:02:34]} g6 {[%emt 0:01:43]} 5. O-O {[%emt 0:02:42]} Bg7 {[%emt 0:00:16]} 6. d3 {[%emt 0:04:22]} Nge7 {[%emt 0:00:48]} 7. c3 {[%emt 0:10:13]} O-O {[%emt 0:06:08]} 8. Be3 {[%emt 0:07:26]} d6 {[%emt 0:07:07]} 9. Nbd2 {[%emt 0:04:43]} f5 {[%emt 0:04:29]} 10. Qb3+ {[%emt 0:04:57]} Kh8 {[%emt 0:14:31]} 11. Ng5 {[%emt 0:04:25]} f4 {[%emt 0:09:50]} 12. Nf7+ {[%emt 0:05:26]} Rxf7 {[%emt 0:00:09]} 13. Qxf7 {[%emt 0:00:05]} fxe3 {[%emt 0:00:22]} 14. fxe3 {[%emt 0:00:16]} Bg4 {[%emt 0:01:03]} 15. Nf3 {[%emt 0:14:06]} Qd7 {[%emt 0:04:56]} 16. Ng5 {[%emt 0:12:14]} Nd8 {[%emt 0:07:01]} 17. Qf2 {[%emt 0:03:30]} h6 {[%emt 0:06:16]} 18. Nf3 {[%emt 0:01:12]} Ndc6 {[%emt 0:02:35]} 19. Qd2 {[%emt 0:03:11]} b5 {[%emt 0:06:39]} 20. Rf2 {[%emt 0:00:52]} Rd8 {[%emt 0:03:03]} 21. Nh4 {[%emt 0:04:22]} Kh7 {[%emt 0:01:34]} 22. Rf7 {[%emt 0:01:44]} Be6 {[%emt 0:04:59]} 23. Rf2 {[%emt 0:01:18]} d5 {[%emt 0:05:42]} 24. exd5 {[%emt 0:06:32]} Bxd5 {[%emt 0:00:07]} 25. e4 {[%emt 0:00:07]} Be6 {[%emt 0:00:11]} 26. Bf1 {[%emt 0:00:18]} c4 {[%emt 0:05:42]} 27. Rd1 {[%emt 0:01:10]} Bg4 {[%emt 0:00:20]} 28. Be2 {[%emt 0:02:16]} Bxe2 {[%emt 0:03:22]} 29. Rxe2 {[%emt 0:00:01]} cxd3 {[%emt 0:00:11]} 30. Re3 {[%emt 0:00:12]} Qe6 {[%emt 0:02:18]} 31. b3 {[%emt 0:00:09]} g5 {[%emt 0:01:20]} 32. Ng2 {[%emt 0:00:47]} b4 {[%emt 0:00:43]} 33. Rxd3 {[%emt 0:00:32]} bxc3 {[%emt 0:00:10]} 34. Qxc3 {[%emt 0:00:13]} Nd4 {[%emt 0:00:05]} 35. R3d2 {[%emt 0:02:06]} Ne2+ {[%emt 0:01:17]} 36. Rxe2 {[%emt 0:00:11]} Rxd1+ {[%emt 0:00:01]} 37. Re1 {[%emt 0:00:24]} Qb6+ {[%emt 0:00:08]} 38. Kh1 {[%emt 0:00:27]} Qd4 {[%emt 0:00:17]} 39. Qxd4 {[%emt 0:00:48]} Rxd4 {[%emt 0:00:21]} 40. Re2 {[%emt 0:00:20]} Nc6 {[%emt 0:00:18]} 41. Kg1 {[%emt 0:30:58]} Bf8 {[%emt 0:30:33]} 42. Kf2 {[%emt 0:00:44]} Bc5 {[%emt 0:00:16]} 43. Ke1 {[%emt 0:01:17]} Nb4 {[%emt 0:01:23]} 44. Kf1 {[%emt 0:02:18]} Rd1+ {[%emt 0:01:00] normal} 0-1

[Event "GER-ch Youth U18w 2019"]
[Site "Willingen"]
[Date "2019.06.09"]
[Round "1.11"]
[White "Kadach, Maria"]
[Black "Koenze, Heike"]
[Result "1-0"]
[ECO "A40"]
[WhiteElo "1448"]
[BlackElo "1919"]
[Annotator "NA"]
[PlyCount "59"]
[EventDate "2019.06.07"]
[EventType "swiss"]
[EventRounds "9"]
[EventCountry "GER"]
[SourceTitle "playchess.com"]
[Source "ChessBase"]
[SourceQuality "1"]
[TimeControl "40/5400+30:1800+30"]

1. d4 {[%emt 0:00:00]} e6 {[%emt 0:00:00]} 2. Bf4 {[%emt 0:00:00]} d5 {[%emt 0:00:07]} 3. e3 {[%emt 0:00:00]} Nf6 {[%emt 0:00:15]} 4. Nd2 {[%emt 0:00:08]} c5 {[%emt 0:00:26]} 5. c3 {[%emt 0:00:09]} Nc6 {[%emt 0:00:26]} 6. Ngf3 {[%emt 0:00:28]} Be7 {[%emt 0:02:09]} 7. h3 {[%emt 0:00:38]} a6 {[%emt 0:03:06]} 8. Bd3 {[%emt 0:00:34]} b6 {[%emt 0:01:12]} 9. O-O {[%emt 0:00:49]} Bb7 {[%emt 0:00:17]} 10. Ne5 {[%emt 0:03:00]} Nxe5 {[%emt 0:01:02]} 11. Bxe5 {[%emt 0:00:31]} O-O {[%emt 0:04:19]} 12. Qb1 {[%emt 0:04:04]} h6 {[%emt 0:01:06]} 13. Re1 {[%emt 0:05:44]} Nd7 {[%emt 0:03:48]} 14. Bh2 {[%emt 0:03:27]} Bf6 {[%emt 0:04:12]} 15. Nf3 {[%emt 0:03:36]} Re8 {[%emt 0:03:44]} 16. Ne5 {[%emt 0:09:16]} Bxe5 {[%emt 0:01:17]} 17. dxe5 {[%emt 0:06:04]} c4 {[%emt 0:02:40]} 18. Bh7+ {[%emt 0:08:56]} Kh8 {[%emt 0:00:17]} 19. Bc2 {[%emt 0:11:02]} Nc5 {[%emt 0:04:17]} 20. Qd1 {[%emt 0:04:41]} Qe7 {[%emt 0:09:27]} 21. Bf4 a5 22. Qh5 {[%emt 0:13:58]} Nd3 {[%emt 0:14:14]} 23. Bxd3 {[%emt 0:15:39]} cxd3 {[%emt 0:00:11]} 24. g4 {[%emt 0:02:42]} Kg8 {[%emt 0:00:20]} 25. g5 {[%emt 0:00:47]} hxg5 {[%emt 0:00:16]} 26. Bxg5 {[%emt 0:00:10]} Qc7 {[%emt 0:02:34]} 27. Bf6 {[%emt 0:01:48]} Qc5 {[%emt 0:08:35]} 28. Kh2 {[%emt 0:01:01]} d4 {[%emt 0:07:25]} 29. Rg1 {[%emt 0:00:37]} Qf8 {[%emt 0:00:39]} 30. Qh6 {[%emt 0:00:30] normal} 1-0

[Event "GER-ch Youth U18w 2019"]
[Site "Willingen"]
[Date "2019.06.09"]
[Round "1.12"]
[White "Browning, Rebecca"]
[Black "Trams, Emma Joe"]
[Result "1-0"]
[ECO "C44"]
[WhiteElo "1923"]
[BlackElo "1418"]
[Annotator "NA"]
[PlyCount "51"]
[EventDate "2019.06.07"]
[EventType "swiss"]
[EventRounds "9"]
[EventCountry "GER"]
[SourceTitle "playchess.com"]
[Source "ChessBase"]
[SourceQuality "1"]
[TimeControl "40/5400+30:1800+30"]

1. e4 e5 {[%emt 0:00:00]} 2. Nf3 {[%emt 0:00:00]} Nc6 3. d4 {[%emt 0:00:00]} exd4 {[%emt 0:00:00]} 4. Nxd4 {[%emt 0:00:00]} Nxd4 {[%emt 0:00:05]} 5. Qxd4 {[%emt 0:00:00]} d6 {[%emt 0:00:17]} 6. Bc4 Be6 {[%emt 0:00:41]} 7. O-O {[%emt 0:00:59]} Bxc4 {[%emt 0:01:07]} 8. Qxc4 {[%emt 0:00:00]} Nf6 {[%emt 0:01:46]} 9. Qb5+ {[%emt 0:00:45]} Nd7 {[%emt 0:01:10]} 10. Qxb7 {[%emt 0:00:13]} Be7 {[%emt 0:03:52]} 11. Nc3 {[%emt 0:01:16]} c5 {[%emt 0:01:19]} 12. Nd5 {[%emt 0:04:12]} O-O {[%emt 0:07:24]} 13. Bd2 {[%emt 0:02:46]} a5 {[%emt 0:08:39]} 14. Qb5 Re8 15. b3 {[%emt 0:03:08]} Bf6 {[%emt 0:01:59]} 16. Nxf6+ {[%emt 0:00:10]} Nxf6 {[%emt 0:00:10]} 17. f3 {[%emt 0:00:29]} Qc7 {[%emt 0:07:05]} 18. Bg5 {[%emt 0:02:12]} Nd7 {[%emt 0:01:09]} 19. Rad1 {[%emt 0:00:31]} Ne5 {[%emt 0:03:53]} 20. Bf4 {[%emt 0:06:45]} Reb8 {[%emt 0:04:44]} 21. Qe2 {[%emt 0:00:17]} a4 {[%emt 0:01:08]} 22. Rd5 {[%emt 0:02:07]} axb3 {[%emt 0:03:06]} 23. axb3 Qb6 {[%emt 0:07:08]} 24. Bxe5 {[%emt 0:00:30]} dxe5 {[%emt 0:01:24]} 25. Qc4 {[%emt 0:00:12]} f6 {[%emt 0:01:28]} 26. Rd6+ {[%emt 0:00:08] normal} 1-0

[Event "GER-ch Youth U18w 2019"]
[Site "Willingen"]
[Date "2019.06.09"]
[Round "1.13"]
[White "Gesell, Patricia"]
[Black "Kobald, Jacqueline"]
[Result "0-1"]
[ECO "A05"]
[WhiteElo "1046"]
[BlackElo "1839"]
[Annotator "NA"]
[PlyCount "106"]
[EventDate "2019.06.07"]
[EventType "swiss"]
[EventRounds "9"]
[EventCountry "GER"]
[SourceTitle "playchess.com"]
[Source "ChessBase"]
[SourceQuality "1"]
[TimeControl "40/5400+30:1800+30"]

1. Nf3 {[%emt 0:00:00]} Nf6 {[%emt 0:00:00]} 2. c4 {[%emt 0:00:00]} g6 {[%emt 0:00:17]} 3. g3 {[%emt 0:00:20]} Bg7 {[%emt 0:00:22]} 4. Bg2 {[%emt 0:00:28]} O-O {[%emt 0:01:03]} 5. O-O {[%emt 0:00:16]} d6 {[%emt 0:01:03]} 6. Nc3 {[%emt 0:00:40]} Nc6 {[%emt 0:04:13]} 7. b3 {[%emt 0:02:00]} Rb8 {[%emt 0:02:00]} 8. Bb2 {[%emt 0:01:29]} e5 9. Rb1 {[%emt 0:06:42]} Bf5 {[%emt 0:11:37]} 10. d3 {[%emt 0:01:58]} Qd7 {[%emt 0:00:17]} 11. e4 {[%emt 0:04:35]} Bg4 {[%emt 0:16:42]} 12. Qd2 Bh3 13. Ng5 {[%emt 0:08:17]} Bxg2 {[%emt 0:00:45]} 14. Kxg2 {[%emt 0:00:24]} h6 {[%emt 0:03:25]} 15. Nf3 {[%emt 0:00:51]} Nh5 {[%emt 0:00:51]} 16. Nd5 {[%emt 0:04:47]} Ne7 {[%emt 0:10:07]} 17. d4 c6 {[%emt 0:00:08]} 18. Nxe7+ {[%emt 0:06:49]} Qxe7 {[%emt 0:03:18]} 19. Rbe1 {[%emt 0:08:37]} Rbe8 {[%emt 0:05:31]} 20. Ba3 {[%emt 0:01:15]} exd4 {[%emt 0:07:17]} 21. Nxd4 {[%emt 0:05:38]} Rd8 22. Qd1 Rfe8 {[%emt 0:04:53]} 23. Nf5 {[%emt 0:03:10]} gxf5 {[%emt 0:00:34]} 24. Qxh5 {[%emt 0:01:07]} fxe4 25. Qg4 Qe6 {[%emt 0:03:05]} 26. Qxe6 {[%emt 0:06:53]} Rxe6 {[%emt 0:02:39]} 27. Re2 d5 {[%emt 0:02:12]} 28. Bc5 {[%emt 0:06:48]} b6 29. cxd5 {[%emt 0:01:21]} cxd5 {[%emt 0:02:44]} 30. Be3 {[%emt 0:01:51]} d4 {[%emt 0:01:54]} 31. Bf4 {[%emt 0:00:56]} f5 {[%emt 0:05:12]} 32. Rd1 Rc6 33. f3 {[%emt 0:03:36]} d3 {[%emt 0:05:39]} 34. Red2 h5 {[%emt 0:02:25]} 35. fxe4 {[%emt 0:03:24]} fxe4 36. Rf1 {[%emt 0:03:35]} Rf8 {[%emt 0:03:44]} 37. Bg5 {[%emt 0:04:55]} Rxf1 {[%emt 0:00:52]} 38. Kxf1 {[%emt 0:04:10]} Bd4 {[%emt 0:02:09]} 39. h3 {[%emt 0:00:30]} Rg6 {[%emt 0:00:30]} 40. Bf4 {[%emt 0:01:20]} h4 {[%emt 0:00:39]} 41. Rg2 e3 {[%emt 0:31:47]} 42. Ke1 {[%emt 0:35:09]} hxg3 {[%emt 0:00:00]} 43. Rxg3 {[%emt 0:00:00]} Bc3+ {[%emt 0:00:00]} 44. Kf1 {[%emt 0:00:00]} e2+ {[%emt 0:00:00]} 45. Kg2 {[%emt 0:00:00]} Rxg3+ {[%emt 0:00:00]} 46. Bxg3 {[%emt 0:00:00]} d2 {[%emt 0:00:00]} 47. h4 {[%emt 0:00:00]} d1=Q {[%emt 0:00:00]} 48. Kh3 {[%emt 0:00:00]} e1=Q {[%emt 0:00:00]} 49. Bxe1 {[%emt 0:00:00]} Bxe1 {[%emt 0:00:00]} 50. a4 {[%emt 0:00:00]} Qf3+ {[%emt 0:00:00]} 51. Kh2 {[%emt 0:00:00]} Bf2 {[%emt 0:00:00]} 52. a5 {[%emt 0:00:00]} Qg3+ {[%emt 0:00:00]} 53. Kh1 {[%emt 0:00:00]} Qg1# {unterminated} 0-1

[Event "GER-ch Youth U18w 2019"]
[Site "Willingen"]
[Date "2019.06.09"]
[Round "2.1"]
[White "Schulze, Lara"]
[Black "Koehler, Inken"]
[Result "1-0"]
[ECO "B06"]
[WhiteElo "2160"]
[BlackElo "1975"]
[Annotator "NA"]
[PlyCount "21"]
[EventDate "2019.06.07"]
[EventType "swiss"]
[EventRounds "9"]
[EventCountry "GER"]
[SourceTitle "playchess.com"]
[Source "ChessBase"]
[SourceQuality "1"]
[TimeControl "40/5400+30:1800+30"]

1. e4 {[%emt 0:00:00]} g6 {[%emt 0:00:00]} 2. d4 {[%emt 0:00:00]} Bg7 {[%emt 0:00:00]} 3. Nf3 {[%emt 0:00:11]} d6 {[%emt 0:00:01]} 4. Bc4 {[%emt 0:00:42]} Nf6 {[%emt 0:00:59]} 5. Qe2 {[%emt 0:00:37]} O-O {[%emt 0:02:00]} 6. O-O {[%emt 0:04:03]} c6 {[%emt 0:05:10]} 7. e5 {[%emt 0:00:45]} dxe5 {[%emt 0:02:01]} 8. dxe5 {[%emt 0:00:07]} Nd5 {[%emt 0:01:18]} 9. h3 {[%emt 0:01:02]} Qc7 {[%emt 0:04:47]} 10. Bxd5 {[%emt 0:03:09]} cxd5 {[%emt 0:00:06]} 11. Nc3 {[%emt 0:00:49] normal} 1-0

[Event "GER-ch Youth U18w 2019"]
[Site "Willingen"]
[Date "2019.06.09"]
[Round "2.3"]
[White "Ratay, Meike"]
[Black "Nguyen, Ha Thanh"]
[Result "0-1"]
[ECO "B38"]
[WhiteElo "1991"]
[BlackElo "1940"]
[Annotator "NA"]
[PlyCount "34"]
[EventDate "2019.06.07"]
[EventType "swiss"]
[EventRounds "9"]
[EventCountry "GER"]
[SourceTitle "playchess.com"]
[Source "ChessBase"]
[SourceQuality "1"]
[TimeControl "40/5400+30:1800+30"]

1. e4 {[%emt 0:00:00]} c5 {[%emt 0:00:00]} 2. Nf3 {[%emt 0:00:00]} Nc6 {[%emt 0:00:00]} 3. d4 {[%emt 0:00:00]} cxd4 {[%emt 0:00:00]} 4. Nxd4 {[%emt 0:00:00]} g6 {[%emt 0:00:00]} 5. c4 {[%emt 0:00:00]} Bg7 {[%emt 0:00:00]} 6. Be3 {[%emt 0:00:00]} Nf6 {[%emt 0:00:06]} 7. Nc3 {[%emt 0:00:03]} O-O {[%emt 0:00:13]} 8. Be2 {[%emt 0:00:10]} d6 {[%emt 0:00:09]} 9. O-O {[%emt 0:00:07]} Bd7 {[%emt 0:00:13]} 10. f3 {[%emt 0:00:13]} Nxd4 {[%emt 0:00:16]} 11. Bxd4 {[%emt 0:00:07]} a5 {[%emt 0:00:17]} 12. b3 {[%emt 0:00:09]} Bc6 {[%emt 0:00:15]} 13. Qd2 {[%emt 0:00:17]} Nd7 {[%emt 0:00:43]} 14. Bf2 {[%emt 0:00:20]} Nc5 {[%emt 0:00:49]} 15. Rab1 {[%emt 0:00:22]} h5 {[%emt 0:10:13]} 16. a3 {[%emt 0:06:51]} Kh7 {[%emt 0:03:22]} 17. Rfd1 {[%emt 0:08:25]} Qc7 {[%emt 0:04:18] normal} 0-1

[Event "GER-ch Youth U18w 2019"]
[Site "Willingen"]
[Date "2019.06.09"]
[Round "2.4"]
[White "Reitz, Theresa"]
[Black "Arnhold, Steffi"]
[Result "0-1"]
[ECO "A05"]
[WhiteElo "1976"]
[BlackElo "1996"]
[Annotator "NA"]
[PlyCount "20"]
[EventDate "2019.06.07"]
[EventType "swiss"]
[EventRounds "9"]
[EventCountry "GER"]
[SourceTitle "playchess.com"]
[Source "ChessBase"]
[SourceQuality "1"]
[TimeControl "40/5400+30:1800+30"]

1. Nf3 {[%emt 0:00:00]} Nf6 {[%emt 0:00:00]} 2. g3 {[%emt 0:00:00]} e6 {[%emt 0:00:00]} 3. Bg2 {[%emt 0:00:00]} d5 {[%emt 0:00:14]} 4. O-O {[%emt 0:00:00]} Be7 {[%emt 0:00:19]} 5. d4 {[%emt 0:03:21]} O-O {[%emt 0:01:03]} 6. c4 {[%emt 0:02:29]} dxc4 {[%emt 0:01:18]} 7. Qa4 {[%emt 0:02:15]} a6 {[%emt 0:02:04]} 8. Qxc4 {[%emt 0:01:24]} b5 {[%emt 0:01:28]} 9. Qc2 {[%emt 0:00:41]} Bb7 {[%emt 0:00:32]} 10. Nc3 {[%emt 0:10:46]} Nbd7 {[%emt 0:06:01] normal} 0-1

[Event "GER-ch Youth U18w 2019"]
[Site "Willingen"]
[Date "2019.06.09"]
[Round "2.5"]
[White "Moenster, Madita"]
[Black "Browning, Rebecca"]
[Result "1-0"]
[ECO "C11"]
[WhiteElo "1994"]
[BlackElo "1923"]
[Annotator "NA"]
[PlyCount "20"]
[EventDate "2019.06.07"]
[EventType "swiss"]
[EventRounds "9"]
[EventCountry "GER"]
[SourceTitle "playchess.com"]
[Source "ChessBase"]
[SourceQuality "1"]
[TimeControl "40/5400+30:1800+30"]

1. e4 {[%emt 0:00:00]} e6 {[%emt 0:00:00]} 2. d4 {[%emt 0:00:00]} d5 {[%emt 0:00:00]} 3. Nc3 {[%emt 0:00:00]} Nf6 {[%emt 0:00:00]} 4. e5 {[%emt 0:00:07]} Nfd7 {[%emt 0:00:00]} 5. f4 {[%emt 0:00:28]} c5 {[%emt 0:00:00]} 6. Nf3 {[%emt 0:00:19]} Be7 {[%emt 0:00:00]} 7. Be3 {[%emt 0:00:59]} b6 {[%emt 0:00:01]} 8. Qd2 {[%emt 0:02:22]} O-O {[%emt 0:00:49]} 9. Nd1 {[%emt 0:09:37]} Nc6 {[%emt 0:12:05]} 10. c3 {[%emt 0:03:02]} a5 {[%emt 0:03:41] normal} 1-0

[Event "GER-ch Youth U18w 2019"]
[Site "Willingen"]
[Date "2019.06.09"]
[Round "2.6"]
[White "Kobald, Jacqueline"]
[Black "Poetsch, Leonore"]
[Result "1/2-1/2"]
[ECO "C11"]
[WhiteElo "1839"]
[BlackElo "1982"]
[Annotator "NA"]
[PlyCount "28"]
[EventDate "2019.06.07"]
[EventType "swiss"]
[EventRounds "9"]
[EventCountry "GER"]
[SourceTitle "playchess.com"]
[Source "ChessBase"]
[SourceQuality "1"]
[TimeControl "40/5400+30:1800+30"]

1. e4 {[%emt 0:00:00]} e6 {[%emt 0:00:00]} 2. d4 {[%emt 0:00:00]} d5 {[%emt 0:00:00]} 3. Nc3 {[%emt 0:00:00]} Nf6 {[%emt 0:00:00]} 4. e5 {[%emt 0:00:09]} Nfd7 {[%emt 0:00:00]} 5. f4 {[%emt 0:00:06]} c5 {[%emt 0:00:00]} 6. Nf3 {[%emt 0:00:21]} Nc6 {[%emt 0:00:00]} 7. Be3 {[%emt 0:00:11]} Be7 {[%emt 0:01:23]} 8. Qd2 {[%emt 0:00:50]} O-O {[%emt 0:00:45]} 9. Be2 {[%emt 0:01:24]} b6 {[%emt 0:01:30]} 10. O-O {[%emt 0:01:13]} f5 {[%emt 0:00:31]} 11. Nd1 {[%emt 0:10:51]} cxd4 {[%emt 0:04:37]} 12. Nxd4 {[%emt 0:03:32]} Nxd4 {[%emt 0:00:09]} 13. Bxd4 {[%emt 0:00:05]} Nc5 {[%emt 0:02:05]} 14. Nf2 {[%emt 0:02:30]} Bb7 {[%emt 0:03:10] normal} 1/2-1/2

[Event "GER-ch Youth U18w 2019"]
[Site "Willingen"]
[Date "2019.06.09"]
[Round "2.7"]
[White "Mundt, Alexandra"]
[Black "Kadach, Maria"]
[Result "1/2-1/2"]
[ECO "B17"]
[WhiteElo "1797"]
[BlackElo "1448"]
[Annotator "NA"]
[PlyCount "25"]
[EventDate "2019.06.07"]
[EventType "swiss"]
[EventRounds "9"]
[EventCountry "GER"]
[SourceTitle "playchess.com"]
[Source "ChessBase"]
[SourceQuality "1"]
[TimeControl "40/5400+30:1800+30"]

1. e4 {[%emt 0:00:00]} c6 {[%emt 0:00:00]} 2. d4 {[%emt 0:00:00]} d5 {[%emt 0:00:00]} 3. Nd2 {[%emt 0:00:00]} dxe4 {[%emt 0:00:28]} 4. Nxe4 {[%emt 0:00:00]} Nd7 {[%emt 0:00:11]} 5. Nf3 {[%emt 0:00:32]} Ngf6 {[%emt 0:00:11]} 6. Ng3 {[%emt 0:01:03]} Nb6 {[%emt 0:00:49]} 7. Be2 {[%emt 0:01:46]} e6 {[%emt 0:02:38]} 8. Bf4 {[%emt 0:01:38]} Nbd5 {[%emt 0:02:18]} 9. Bd2 {[%emt 0:02:39]} c5 {[%emt 0:06:45]} 10. c4 {[%emt 0:05:05]} Nb6 {[%emt 0:01:19]} 11. Bc3 {[%emt 0:01:13]} Nbd7 {[%emt 0:04:16]} 12. O-O {[%emt 0:03:52]} Be7 {[%emt 0:00:20]} 13. Qc2 {[%emt 0:02:29] normal} 1/2-1/2

[Event "GER-ch Youth U18w 2019"]
[Site "Willingen"]
[Date "2019.06.09"]
[Round "2.8"]
[White "Koenze, Heike"]
[Black "Peters, Jenna Maria Lara"]
[Result "1-0"]
[ECO "C45"]
[WhiteElo "1919"]
[BlackElo "1594"]
[Annotator "NA"]
[PlyCount "36"]
[EventDate "2019.06.07"]
[EventType "swiss"]
[EventRounds "9"]
[EventCountry "GER"]
[SourceTitle "playchess.com"]
[Source "ChessBase"]
[SourceQuality "1"]
[TimeControl "40/5400+30:1800+30"]

1. e4 {[%emt 0:00:00]} e5 {[%emt 0:00:00]} 2. Nf3 {[%emt 0:00:00]} Nc6 {[%emt 0:00:00]} 3. d4 {[%emt 0:00:00]} exd4 {[%emt 0:00:00]} 4. Nxd4 {[%emt 0:00:00]} Bc5 {[%emt 0:00:00]} 5. Nb3 {[%emt 0:00:05]} Bb6 {[%emt 0:00:12]} 6. Nc3 {[%emt 0:00:09]} Nf6 {[%emt 0:00:13]} 7. Bg5 {[%emt 0:00:14]} h6 {[%emt 0:00:15]} 8. Bh4 {[%emt 0:00:17]} d6 {[%emt 0:00:13]} 9. Bb5 {[%emt 0:00:44]} g5 {[%emt 0:02:17]} 10. Bg3 {[%emt 0:00:27]} Be6 {[%emt 0:00:17]} 11. Qe2 {[%emt 0:01:58]} Qe7 {[%emt 0:01:17]} 12. O-O-O {[%emt 0:01:28]} O-O-O {[%emt 0:01:06]} 13. Bxc6 {[%emt 0:02:22]} bxc6 {[%emt 0:00:14]} 14. Qa6+ {[%emt 0:00:21]} Kd7 {[%emt 0:01:46]} 15. e5 {[%emt 0:01:37]} Nd5 {[%emt 0:01:24]} 16. Nxd5 {[%emt 0:00:40]} Bxd5 {[%emt 0:00:22]} 17. exd6 {[%emt 0:00:10]} cxd6 {[%emt 0:00:16]} 18. Rhe1 {[%emt 0:00:19]} Qf6 {[%emt 0:01:02] normal} 1-0

[Event "GER-ch Youth U18w 2019"]
[Site "Willingen"]
[Date "2019.06.09"]
[Round "2.9"]
[White "Fuchs, Emily"]
[Black "Fock, Sana"]
[Result "1/2-1/2"]
[ECO "B21"]
[WhiteElo "1384"]
[BlackElo "1796"]
[Annotator "NA"]
[PlyCount "30"]
[EventDate "2019.06.07"]
[EventType "swiss"]
[EventRounds "9"]
[EventCountry "GER"]
[SourceTitle "playchess.com"]
[Source "ChessBase"]
[SourceQuality "1"]
[TimeControl "40/5400+30:1800+30"]

1. e4 {[%emt 0:00:00]} c5 {[%emt 0:00:00]} 2. d4 {[%emt 0:00:00]} cxd4 {[%emt 0:00:00]} 3. c3 {[%emt 0:00:00]} Nf6 {[%emt 0:00:38]} 4. e5 {[%emt 0:00:00]} Nd5 {[%emt 0:00:05]} 5. Nf3 {[%emt 0:00:37]} d6 {[%emt 0:01:11]} 6. cxd4 {[%emt 0:01:46]} Nc6 {[%emt 0:01:16]} 7. Nc3 {[%emt 0:04:38]} dxe5 {[%emt 0:10:10]} 8. Nxe5 {[%emt 0:08:24]} Nxc3 {[%emt 0:04:36]} 9. Nxc6 {[%emt 0:02:52]} Nxd1 {[%emt 0:02:25]} 10. Nxd8 {[%emt 0:00:28]} Kxd8 {[%emt 0:03:47]} 11. Kxd1 {[%emt 0:01:43]} Bf5 {[%emt 0:06:47]} 12. Bf4 {[%emt 0:02:18]} Rc8 {[%emt 0:01:31]} 13. Rc1 {[%emt 0:01:08]} Rxc1+ {[%emt 0:03:58]} 14. Kxc1 {[%emt 0:02:45]} a6 {[%emt 0:04:56]} 15. a3 {[%emt 0:03:39]} Be6 {[%emt 0:02:50] normal} 1/2-1/2

[Event "GER-ch Youth U18w 2019"]
[Site "Willingen"]
[Date "2019.06.09"]
[Round "2.13"]
[White "Schneider, Xenia"]
[Black "Gesell, Patricia"]
[Result "1/2-1/2"]
[ECO "B06"]
[WhiteElo "1364"]
[BlackElo "1046"]
[Annotator "NA"]
[PlyCount "29"]
[EventDate "2019.06.07"]
[EventType "swiss"]
[EventRounds "9"]
[EventCountry "GER"]
[SourceTitle "playchess.com"]
[Source "ChessBase"]
[SourceQuality "1"]
[TimeControl "40/5400+30:1800+30"]

1. e4 g6 2. Bc4 {[%emt 0:00:03]} Bg7 {[%emt 0:00:16]} 3. Nf3 Nf6 4. Nc3 {[%emt 0:04:02]} O-O {[%emt 0:01:23]} 5. O-O {[%emt 0:00:45]} Nc6 {[%emt 0:01:42]} 6. d4 {[%emt 0:04:50]} b6 {[%emt 0:00:38]} 7. e5 Ne8 {[%emt 0:02:21]} 8. Ng5 {[%emt 0:01:17]} e6 {[%emt 0:05:29]} 9. f4 {[%emt 0:10:12]} Bb7 {[%emt 0:03:49]} 10. f5 {[%emt 0:01:12]} exf5 11. Rxf5 {[%emt 0:01:24]} Na5 {[%emt 0:07:52]} 12. Bxf7+ {[%emt 0:00:24]} Rxf7 {[%emt 0:04:15]} 13. Rxf7 {[%emt 0:05:18]} h6 {[%emt 0:04:27]} 14. e6 {[%emt 0:08:15]} dxe6 15. Nxe6 {normal} 1/2-1/2

[Event "GER-ch Youth U18w 2019"]
[Site "Willingen"]
[Date "2019.06.10"]
[Round "3.1"]
[White "Nguyen, Ha Thanh"]
[Black "Schulze, Lara"]
[Result "1/2-1/2"]
[ECO "B68"]
[WhiteElo "1940"]
[BlackElo "2160"]
[Annotator "NA"]
[PlyCount "47"]
[EventDate "2019.06.07"]
[EventType "swiss"]
[EventRounds "9"]
[EventCountry "GER"]
[SourceTitle "playchess.com"]
[Source "ChessBase"]
[SourceQuality "1"]
[TimeControl "40/5400+30:1800+30"]

1. e4 {[%emt 0:00:00]} c5 {[%emt 0:00:00]} 2. Nf3 {[%emt 0:00:00]} d6 {[%emt 0:00:00]} 3. d4 {[%emt 0:00:00]} cxd4 {[%emt 0:00:00]} 4. Nxd4 {[%emt 0:00:00]} Nf6 {[%emt 0:00:00]} 5. Nc3 {[%emt 0:00:00]} Nc6 {[%emt 0:00:00]} 6. Bg5 {[%emt 0:00:10]} e6 {[%emt 0:00:00]} 7. Qd2 {[%emt 0:00:09]} a6 {[%emt 0:00:11]} 8. O-O-O {[%emt 0:00:21]} Bd7 {[%emt 0:00:13]} 9. f4 {[%emt 0:00:34]} Be7 {[%emt 0:00:13]} 10. Kb1 {[%emt 0:00:52]} h6 {[%emt 0:02:59]} 11. Bh4 {[%emt 0:04:00]} b5 {[%emt 0:04:09]} 12. a3 {[%emt 0:03:02]} Qb6 {[%emt 0:15:17]} 13. f5 {[%emt 0:16:04]} Qxd4 {[%emt 0:10:14]} 14. Qxd4 {[%emt 0:00:19]} Nxd4 {[%emt 0:00:05]} 15. Rxd4 {[%emt 0:00:07]} Bc6 {[%emt 0:12:56]} 16. Bxf6 {[%emt 0:05:46]} Bxf6 {[%emt 0:06:14]} 17. Rxd6 {[%emt 0:00:20]} Rc8 {[%emt 0:02:37]} 18. fxe6 {[%emt 0:08:28]} Ke7 {[%emt 0:01:07]} 19. Rd2 {[%emt 0:00:40]} fxe6 {[%emt 0:04:13]} 20. Bd3 {[%emt 0:05:06]} Bxc3 {[%emt 0:08:35]} 21. bxc3 {[%emt 0:00:12]} Rhf8 {[%emt 0:00:12]} 22. Kb2 {[%emt 0:00:46]} Bb7 {[%emt 0:02:30]} 23. Re1 {[%emt 0:01:37]} Rc5 {[%emt 0:02:07]} 24. Re3 {[%emt 0:00:45] normal} 1/2-1/2